bitfinex-derivatives/quotes_BTCF0:USTF0_20250212
["timestamp","ask_amount","ask_price","bid_price","bid_amount"]
[1739359050922,0.3618,96253.0,96252.0,0.07124]
[1739359051618,0.3608,96253.0,96252.0,0.07024]
[1739359053923,0.3608,96253.0,96252.0,0.06824]
[1739359054329,0.3608,96253.0,96250.0,1e-08]
[1739359055915,0.3608,96253.0,96250.0,0.00200001]
[1739359057530,0.3608,96253.0,96250.0,1e-08]
[1739359058426,0.3628,96253.0,96250.0,1e-08]
[1739359059228,0.09569987,96252.0,96250.0,1e-08]
[1739359059926,0.11307512,96252.0,96250.0,1e-08]
[1739359060732,0.11407512,96252.0,96250.0,1e-08]
[1739359062230,0.09569987,96251.0,96250.0,1e-08]
[1739359063722,0.09669987,96251.0,96250.0,1e-08]
[1739359064420,0.10469987,96251.0,96250.0,1e-08]
[1739359065034,0.10569987,96251.0,96250.0,1e-08]
[1739359065236,0.01,96251.0,96250.0,1e-08]
[1739359065836,0.02737525,96251.0,96250.0,1e-08]
[1739359070541,0.12307524,96251.0,96250.0,1e-08]
[1739359075441,0.84467524,96251.0,96250.0,1e-08]
[1739359078342,0.74897525,96251.0,96250.0,1e-08]
[1739359081035,0.74797525,96251.0,96250.0,1e-08]
[1739359081238,0.74897525,96251.0,96250.0,1e-08]
[1739359083748,0.7316,96251.0,96250.0,1e-08]
[1739359089846,0.01,96251.0,96250.0,1e-08]
[1739359090045,0.3708,96251.0,96250.0,1e-08]
[1739359092352,0.3708,96251.0,96250.0,0.06824001]
[1739359104956,0.01,96251.0,96250.0,0.06824001]
[1739359105453,0.001,96251.0,96250.0,0.06824001]
[1739359105655,0.01,96251.0,96250.0,0.06824001]
[1739359107253,0.009,96251.0,96250.0,0.06824001]
[1739359107456,0.01,96251.0,96250.0,0.06824001]
[1739359108648,0.001,96251.0,96250.0,0.06824001]
[1739359108848,0.002,96251.0,96250.0,0.06924001]
[1739359109045,0.001,96251.0,96250.0,0.06924001]
[1739359110149,0.3608,96252.0,96250.0,0.06824001]
[1739359110349,0.009,96251.0,96250.0,0.06824001]
[1739359110550,0.3698,96251.0,96250.0,0.06824001]
[1739359111055,0.3698,96251.0,96250.0,0.06924001]
[1739359111056,0.3618,96251.0,96250.0,0.06924001]
[1739359112261,0.3628,96251.0,96250.0,0.06924001]
[1739359113362,0.3708,96251.0,96250.0,0.06824001]
[1739359114461,0.3708,96251.0,96250.0,1e-08]
[1739359114759,0.3708,96251.0,96250.0,0.06820001]
[1739359123658,0.3618,96251.0,96250.0,0.06920001]
[1739359123958,0.3628,96251.0,96250.0,0.06920001]
[1739359124361,0.3618,96251.0,96250.0,0.06920001]
[1739359126756,0.3618,96251.0,96250.0,1e-08]
[1739359126959,0.3618,96251.0,96250.0,0.0365]
[1739359127155,0.3618,96251.0,96250.0,1e-08]
[1739359127361,0.3618,96251.0,96249.0,0.0682]
[1739359128567,0.45749387,96251.0,96249.0,0.0682]
[1739359129871,0.45649387,96251.0,96249.0,0.0682]
[1739359130569,0.01737525,96250.0,96240.0,0.00015585]
[1739359130770,0.3608,96241.0,96240.0,1e-08]
[1739359133266,0.3618,96241.0,96240.0,1e-08]
[1739359133974,0.7226,96241.0,96240.0,1e-08]
[1739359134364,0.73301007,96241.0,96240.0,1e-08]
[1739359137976,0.73301007,96241.0,96240.0,0.06820001]
[1739359140468,0.73301007,96241.0,96240.0,1e-08]
[1739359147074,0.7226,96241.0,96240.0,1e-08]
[1739359161601,0.81830696,96241.0,96240.0,1e-08]
[1739359164502,0.81730696,96241.0,96240.0,1e-08]
[1739359164699,0.45750696,96241.0,96240.0,1e-08]
[1739359165404,0.45750696,96241.0,96240.0,0.06450001]
[1739359165605,0.45850696,96241.0,96240.0,0.06450001]
[1739359166208,0.45750696,96241.0,96240.0,0.06450001]
[1739359167211,0.3618,96241.0,96240.0,0.06450001]
[1739359167911,0.3628,96241.0,96240.0,0.06450001]
[1739359169012,0.3618,96241.0,96240.0,0.06450001]
[1739359169311,0.3608,96241.0,96240.0,0.06450001]
[1739359169508,0.3628,96241.0,96240.0,0.06450001]
[1739359178821,0.3628,96241.0,96240.0,0.13270001]
[1739359183418,0.002,96241.0,96240.0,0.13270001]
[1739359188814,0.001,96241.0,96240.0,0.13270001]
[1739359189528,0.002,96241.0,96240.0,0.13270001]
[1739359189832,0.003,96241.0,96240.0,0.13270001]
[1739359197728,0.00108001,96255.0,96240.0,0.79350001]
[1739359198036,0.09830654,96279.0,96254.0,0.3608]
[1739359198233,0.031,96279.0,96258.0,0.3608]
[1739359198435,0.031,96279.0,96268.0,0.3608]
[1739359198637,0.031,96279.0,96268.0,0.42896]
[1739359199739,0.00215585,96269.0,96268.0,0.42896]
[1739359200930,0.01215585,96269.0,96268.0,0.42996]
[1739359202228,0.01016529,96284.0,96268.0,0.42996]
[1739359202434,0.01737525,96294.0,96279.0,0.3608]
[1739359202632,0.02794903,96294.0,96288.0,0.3608]
[1739359203539,0.01737525,96294.0,96288.0,0.3608]
[1739359203941,0.03237525,96294.0,96288.0,0.3608]
[1739359204636,0.01737525,96294.0,96288.0,0.3608]
[1739359204839,0.03237525,96294.0,96288.0,0.3618]
[1739359205538,0.03137525,96294.0,96288.0,0.3618]
[1739359205933,0.03137525,96294.0,96288.0,0.3628]
[1739359205934,0.03837525,96294.0,96288.0,0.3628]
[1739359206426,0.03537525,96294.0,96288.0,0.3618]
[1739359207842,0.03237525,96294.0,96288.0,0.3618]
[1739359208441,0.015,96294.0,96288.0,0.3618]
[1739359213347,0.015,96294.0,96289.0,0.06812]
[1739359213640,0.002,96294.0,96290.0,0.06812]
[1739359214440,0.001,96294.0,96291.0,0.06812]
[1739359214739,0.001,96294.0,96288.0,0.3708]
[1739359214740,0.001,96294.0,96288.0,0.01]
[1739359215239,0.72268001,96296.0,96288.0,0.003]
[1739359215440,0.7216,96296.0,96281.0,0.00015585]
[1739359215633,0.7216,96296.0,96277.0,0.06812]
[1739359215634,0.3608,96282.0,96277.0,0.06812]
[1739359215831,0.0319,96281.0,96277.0,0.06812]
[1739359216247,0.0319,96281.0,96272.0,0.06812]
[1739359217545,0.0319,96281.0,96272.0,0.07212]
[1739359218138,0.04225185,96281.0,96272.0,0.07212]
[1739359218447,0.04225185,96281.0,96272.0,0.07612]
[1739359218946,0.0956693,96280.0,96272.0,0.07612]
[1739359219147,0.1268693,96280.0,96272.0,0.07612]
[1739359219345,0.0311,96279.0,96272.0,0.07612]
[1739359220044,0.0311,96279.0,96272.0,0.07412]
[1739359221239,0.0311,96279.0,96272.0,0.07012]
[1739359221443,0.0311,96279.0,96272.0,0.07212]
[1739359221643,0.0311,96279.0,96272.0,0.07612]
[1739359222041,0.3608,96277.0,96272.0,0.07612]
[1739359223047,0.3608,96277.0,96272.0,0.06812]
[1739359223248,0.3608,96277.0,96272.0,0.07612]
[1739359228352,0.3608,96277.0,96272.0,0.008]
[1739359229242,0.3608,96277.0,96272.0,0.007]
[1739359229443,0.3608,96277.0,96272.0,0.003]
[1739359229842,0.3608,96277.0,96272.0,0.006]
[1739359230249,0.3608,96277.0,96272.0,0.005]
[1739359232248,0.37817525,96277.0,96272.0,0.005]
[1739359236050,0.01737525,96277.0,96272.0,0.005]
[1739359236254,0.3608,96273.0,96272.0,0.005]
[1739359238153,0.3608,96273.0,96272.0,0.002]
[1739359238361,0.3608,96273.0,96272.0,0.005]
[1739359239059,0.3608,96273.0,96272.0,0.004]
[1739359239260,0.3618,96273.0,96272.0,0.002]
[1739359239955,0.001,96273.0,96272.0,0.002]
[1739359240161,0.3608,96273.0,96272.0,0.003]
[1739359240963,0.3618,96273.0,96272.0,0.002]
[1739359242157,0.3618,96273.0,96269.0,0.09962]
[1739359242355,0.3618,96273.0,96272.0,0.002]
[1739359242958,0.45747548,96273.0,96272.0,0.002]
[1739359243157,0.45647548,96273.0,96272.0,0.003]
[1739359243362,0.45647548,96273.0,96272.0,0.001]
[1739359243865,0.45647548,96273.0,96269.0,0.10262]
[1739359244161,0.45747548,96273.0,96269.0,0.10262]
[1739359244966,0.45747548,96273.0,96269.0,0.09962]
[1739359245165,0.45747548,96273.0,96272.0,0.002]
[1739359245357,0.3618,96273.0,96272.0,0.002]
[1739359245560,0.3618,96273.0,96269.0,0.09962]
[1739359245760,0.3608,96273.0,96272.0,0.001]
[1739359246463,0.3608,96273.0,96269.0,0.10262]
[1739359246764,0.3608,96273.0,96272.0,0.003]
[1739359248260,0.3608,96273.0,96272.0,0.001]
[1739359248661,0.3608,96273.0,96269.0,0.10562]
[1739359248864,0.3608,96273.0,96269.0,0.10262]
[1739359249062,0.3608,96273.0,96272.0,0.002]
[1739359249468,0.3608,96273.0,96272.0,0.003]
[1739359250061,0.3608,96273.0,96272.0,0.001]
[1739359251862,0.3608,96273.0,96272.0,0.003]
[1739359256672,0.4564696,96273.0,96272.0,0.003]
[1739359257375,0.0956696,96273.0,96272.0,0.003]
[1739359257859,0.0956696,96273.0,96272.0,0.002]
[1739359258065,0.0956696,96273.0,96272.0,0.003]
[1739359259576,0.0105077,96281.0,96272.0,0.002]
[1739359259878,0.0105077,96281.0,96272.0,0.003]
[1739359266983,0.00015585,96281.0,96272.0,0.003]
[1739359267979,0.00015585,96281.0,96272.0,0.001]
[1739359268183,0.00015585,96281.0,96272.0,0.01365386]
[1739359268485,0.00015585,96281.0,96278.0,0.3608]
[1739359268685,0.00015585,96281.0,96279.0,0.06812]
[1739359270474,0.1,96300.0,96279.0,0.06812]
[1739359270683,0.1,96300.0,96290.0,0.4424588]
[1739359270988,0.1,96300.0,96291.0,0.13152]
[1739359272490,0.116,96300.0,96291.0,0.13252]
[1739359272788,0.12962886,96300.0,96291.0,0.13252]
[1739359274104,0.12662886,96300.0,96291.0,0.13252]
[1739359274693,0.12262886,96300.0,96291.0,0.13252]
[1739359275604,0.11262886,96300.0,96291.0,0.13152]
[1739359275898,0.12262886,96300.0,96291.0,0.13252]
[1739359279696,0.112,96300.0,96291.0,0.13252]
[1739359281596,0.112,96300.0,96299.0,0.3608]
[1739359283403,0.119,96300.0,96299.0,0.3618]
[1739359284607,0.119,96300.0,96299.0,0.37204595]
[1739359287512,0.119,96300.0,96299.0,0.01124595]
[1739359287707,0.119,96300.0,96299.0,0.37204595]
[1739359290111,0.119,96300.0,96299.0,0.3618]
[1739359302022,0.119,96300.0,96299.0,0.001]
[1739359302212,0.119,96300.0,96299.0,0.3618]
[1739359303721,0.119,96300.0,96299.0,0.42988]
[1739359307527,0.119,96300.0,96299.0,0.3618]
[1739359307724,0.119,96300.0,96299.0,0.42988]
[1739359308724,0.119,96300.0,96299.0,0.3618]
[1739359308923,0.119,96300.0,96299.0,0.42988]
[1739359309727,0.12967191,96300.0,96299.0,0.42988]
[1739359310630,0.11904528,96300.0,96299.0,0.42988]
[1739359312723,0.11904528,96300.0,96299.0,0.3618]
[1739359312923,0.11904528,96300.0,96299.0,0.42988]
[1739359322130,0.00015585,96305.0,96299.0,0.42988]
[1739359323329,0.01515585,96305.0,96299.0,0.42988]
[1739359323737,0.01915585,96305.0,96299.0,0.42988]
[1739359324440,0.01915585,96305.0,96304.0,0.3608]
[1739359325842,0.02015585,96305.0,96304.0,0.3608]
[1739359326439,0.00515585,96305.0,96304.0,0.3618]
[1739359328738,0.2,96320.0,96304.0,0.37209421]
[1739359328941,0.2,96320.0,96318.0,0.3608]
[1739359329242,0.2,96320.0,96319.0,0.06808]
[1739359330050,0.21,96320.0,96319.0,0.06808]
[1739359330449,0.205,96320.0,96319.0,0.06808]
[1739359330640,0.212,96320.0,96319.0,0.07008]
[1739359333049,0.2,96320.0,96319.0,0.08008]
[1739359333352,0.2,96320.0,96319.0,0.08708]
[1739359333744,0.2,96320.0,96319.0,0.09733673]
[1739359336254,0.2,96320.0,96319.0,0.08533673]
[1739359336455,0.2,96320.0,96319.0,0.09433673]
[1739359336658,0.2,96320.0,96319.0,0.02625673]
[1739359336952,0.2,96320.0,96319.0,0.08633673]
[1739359337355,0.2,96320.0,96319.0,0.07308]
[1739359338143,0.2,96320.0,96319.0,0.005]
[1739359338347,0.2,96320.0,96319.0,0.07308]
[1739359338557,0.2,96320.0,96319.0,0.07008]
[1739359338758,0.2,96320.0,96319.0,0.07208]
[1739359339358,0.2,96320.0,96319.0,0.07008]
[1739359340459,0.0243155,96320.0,96319.0,0.07008]
[1739359344754,0.0243155,96320.0,96319.0,0.10028]
[1739359346259,0.0243155,96320.0,96319.0,0.09828]
[1739359346454,0.0243155,96320.0,96319.0,0.10028]
[1739359347965,0.0243155,96320.0,96319.0,0.002]
[1739359348365,0.0243155,96320.0,96319.0,0.07008]
[1739359349365,0.03595851,96320.0,96319.0,0.06808]
[1739359349565,0.03595851,96320.0,96319.0,0.06908]
[1739359353160,0.03595851,96320.0,96319.0,0.001]
[1739359353469,0.03595851,96320.0,96319.0,0.06908]
[1739359354372,0.03595851,96320.0,96319.0,0.001]
[1739359355770,0.03695851,96320.0,96319.0,0.001]
[1739359356962,0.05433376,96320.0,96319.0,0.001]
[1739359376998,0.05233376,96320.0,96319.0,0.001]
[1739359377197,0.05433376,96320.0,96319.0,0.001]
[1739359377508,0.05433376,96320.0,96318.0,0.06808]
[1739359377701,0.05433376,96320.0,96319.0,0.001]
[1739359380204,0.05233376,96320.0,96319.0,0.001]
[1739359380406,0.05433376,96320.0,96319.0,0.001]
[1739359387804,0.23230575,96322.0,96319.0,0.001]
[1739359389607,0.23330575,96322.0,96319.0,0.001]
[1739359390308,0.24397955,96322.0,96319.0,0.001]
[1739359392103,0.0116738,96322.0,96319.0,0.001]
[1739359392306,0.0116738,96322.0,96320.0,0.0324]
[1739359393410,0.0126738,96322.0,96320.0,0.0324]
[1739359394900,0.0126738,96322.0,96320.0,0.0334]
[1739359397910,0.002,96322.0,96320.0,0.0334]
[1739359399911,0.01019074,96323.0,96320.0,0.0334]
[1739359400104,0.002,96322.0,96320.0,0.0334]
[1739359401207,0.01053643,96328.0,96320.0,0.0334]
[1739359401408,0.00015566,96329.0,96320.0,0.0334]
[1739359401807,0.01047031,96329.0,96320.0,0.0334]
[1739359402616,0.002,96322.0,96320.0,0.0334]
[1739359403113,0.01047031,96329.0,96320.0,0.0334]
[1739359403313,0.01247031,96329.0,96320.0,0.0334]
[1739359403907,0.001,96322.0,96320.0,0.0334]
[1739359405509,0.01147031,96329.0,96320.0,0.0334]
[1739359406208,0.001,96322.0,96320.0,0.0334]
[1739359407112,0.01147031,96329.0,96320.0,0.0334]
[1739359408908,0.01047031,96329.0,96320.0,0.0334]
[1739359409119,0.001,96322.0,96320.0,0.0334]
[1739359409916,0.001,96322.0,96321.0,0.3608]
[1739359411515,0.01047031,96329.0,96321.0,0.3608]
[1739359411708,0.01047031,96329.0,96321.0,0.3658]
[1739359412322,0.01047031,96329.0,96321.0,0.3758]
[1739359412920,0.01047031,96329.0,96321.0,0.3658]
[1739359413119,0.01047031,96329.0,96321.0,0.3738]
[1739359413712,0.00015566,96329.0,96321.0,0.3738]
[1739359414510,0.00015566,96329.0,96321.0,0.3728]
[1739359414713,0.00015566,96329.0,96321.0,0.3648]
[1739359415024,0.00015566,96329.0,96321.0,0.3728]
[1739359418422,0.00015566,96329.0,96321.0,0.3648]
[1739359418618,0.00015566,96329.0,96321.0,0.015]
[1739359418833,0.00015566,96329.0,96324.0,0.3608]
[1739359419024,0.00015566,96329.0,96325.0,0.06804]
[1739359421629,0.00015566,96329.0,96325.0,0.10384]
[1739359421828,0.00015566,96329.0,96325.0,0.10484]
[1739359422328,0.00015566,96329.0,96325.0,0.10784]
[1739359422519,0.00015566,96329.0,96325.0,0.10684]
[1739359422720,0.00015566,96329.0,96325.0,0.10784]
[1739359424229,0.00015566,96329.0,96328.0,0.3608]
[1739359425726,0.00015566,96329.0,96328.0,0.3628]
[1739359427031,0.00015566,96329.0,96328.0,0.3658]
[1739359427630,0.00015566,96329.0,96328.0,0.3638]
[1739359427932,0.00015566,96329.0,96328.0,0.3658]
[1739359430822,0.00015566,96329.0,96328.0,0.005]
[1739359431027,0.00015566,96329.0,96328.0,0.3658]
[1739359434532,0.00015566,96329.0,96328.0,0.3628]
[1739359434735,0.00015566,96329.0,96328.0,0.3658]
[1739359437536,0.00015566,96329.0,96328.0,0.3638]
[1739359437738,0.00015566,96329.0,96328.0,0.3658]
[1739359439945,0.00015566,96329.0,96328.0,0.3648]
[1739359443344,0.00015566,96329.0,96328.0,0.004]
[1739359443737,0.00015566,96329.0,96328.0,0.002]
[1739359443938,0.00015566,96329.0,96328.0,0.004]
[1739359446744,0.00015566,96329.0,96328.0,0.002]
[1739359446944,0.00015566,96329.0,96328.0,0.004]
[1739359451338,0.36095566,96329.0,96328.0,0.004]
[1739359451543,0.36095566,96329.0,96328.0,0.003]
[1739359453145,0.36395566,96329.0,96312.0,0.3608]
[1739359453353,0.3608,96318.0,96310.0,0.00015576]
[1739359453549,0.0325,96317.0,96310.0,0.00015576]
[1739359453751,0.0638,96317.0,96310.0,0.00015576]
[1739359454243,0.0638,96317.0,96312.0,0.002]
[1739359454851,0.0638,96317.0,96310.0,0.00515576]
[1739359456356,0.0638,96317.0,96310.0,0.00215576]
[1739359456559,0.0638,96317.0,96312.0,0.001]
[1739359457152,0.0638,96317.0,96310.0,0.00315576]
[1739359457551,0.0638,96317.0,96310.0,0.00115576]
[1739359457855,0.07657957,96317.0,96312.0,0.001]
[1739359458355,0.07657957,96317.0,96310.0,0.00215576]
[1739359459559,0.07657957,96317.0,96310.0,0.00315576]
[1739359459752,0.07657957,96317.0,96312.0,0.001]
[1739359460253,0.07657957,96317.0,96310.0,0.00115576]
[1739359460458,0.07657957,96317.0,96310.0,0.00315576]
[1739359460963,0.07657957,96317.0,96312.0,0.001]
[1739359461147,0.04527957,96317.0,96312.0,0.001]
[1739359461342,0.04527957,96317.0,96310.0,0.00115576]
[1739359461343,0.01277957,96317.0,96310.0,0.00115576]
[1739359461547,0.3608,96318.0,96311.0,0.06804]
[1739359461953,0.37376303,96318.0,96311.0,0.06804]
[1739359463153,0.37376303,96318.0,96312.0,0.001]
[1739359463751,0.37376303,96318.0,96311.0,0.07004]
[1739359464454,0.37376303,96318.0,96312.0,0.001]
[1739359466156,0.37376303,96318.0,96311.0,0.07004]
[1739359466657,0.37376303,96318.0,96312.0,0.003]
[1739359466858,0.37376303,96318.0,96312.0,0.007]
[1739359467064,0.37376303,96318.0,96312.0,0.004]
[1739359467252,0.37376303,96318.0,96312.0,0.005]
[1739359467651,0.37376303,96318.0,96312.0,0.001]
[1739359469958,0.37376303,96318.0,96310.0,0.00015576]
[1739359470153,0.37676303,96318.0,96312.0,0.003]
[1739359471163,0.37776303,96318.0,96310.0,0.00015576]
[1739359471547,0.37676303,96318.0,96310.0,0.00015576]
[1739359471858,0.37776303,96318.0,96310.0,0.00015576]
[1739359472958,0.41092015,96318.0,96310.0,0.00015576]
[1739359473159,0.3608,96311.0,96310.0,0.00015576]
[1739359474462,0.3638,96311.0,96310.0,0.00015576]
[1739359477863,0.003,96311.0,96310.0,0.00015576]
[1739359478063,0.3638,96311.0,96310.0,0.00015576]
[1739359492179,0.003,96311.0,96310.0,0.00015576]
[1739359497481,0.3638,96311.0,96310.0,0.00015576]
[1739359498979,0.003,96311.0,96310.0,0.00015576]
[1739359499174,0.3638,96311.0,96310.0,0.00015576]
[1739359507693,0.39695712,96311.0,96291.0,0.0307]
[1739359507888,0.3608,96297.0,96291.0,0.0307]
[1739359509188,0.3608,96297.0,96291.0,0.0317]
[1739359509690,0.3608,96297.0,96291.0,0.0307]
[1739359509895,0.3608,96297.0,96291.0,0.0327]
[1739359512784,0.3608,96297.0,96291.0,0.0317]
[1739359513008,0.3608,96297.0,96291.0,0.0327]
[1739359513393,0.3608,96297.0,96291.0,0.0317]
[1739359513592,0.3608,96297.0,96291.0,0.0327]
[1739359515695,0.37335272,96297.0,96291.0,0.0327]
[1739359516193,0.37335272,96297.0,96291.0,0.0317]
[1739359517005,0.37335272,96297.0,96291.0,0.0307]
[1739359517197,0.37335272,96297.0,96291.0,0.0317]
[1739359517900,0.01255272,96297.0,96291.0,0.0317]
[1739359518102,0.0816588,96301.0,96291.0,0.0317]
[1739359518403,0.3608,96297.0,96291.0,0.0317]
[1739359519506,0.3608,96297.0,96291.0,0.0307]
[1739359519802,0.3608,96297.0,96291.0,0.0317]
[1739359520003,0.09442053,96301.0,96291.0,0.0317]
[1739359520199,0.01276173,96301.0,96291.0,0.0317]
[1739359520405,0.0816588,96301.0,96291.0,0.0317]
[1739359523804,0.0816588,96301.0,96291.0,0.0357]
[1739359524007,0.0816588,96301.0,96291.0,0.0367]
[1739359524410,0.0816588,96301.0,96291.0,0.0347]
[1739359524711,0.0816588,96301.0,96291.0,0.0357]
[1739359525107,0.0816588,96301.0,96291.0,0.0317]
[1739359526409,0.0816588,96301.0,96291.0,0.0337]
[1739359527003,0.0816588,96301.0,96291.0,0.0317]
[1739359528027,0.0816588,96301.0,96291.0,0.0307]
[1739359528224,0.0816588,96301.0,96291.0,0.0327]
[1739359528928,0.0816588,96301.0,96291.0,0.0397]
[1739359529627,0.0816588,96301.0,96291.0,0.0307]
[1739359529822,0.0816588,96301.0,96291.0,0.0387]
[1739359530019,0.01255762,96304.0,96291.0,0.0387]
[1739359530224,0.01255762,96304.0,96294.0,0.0816588]
[1739359530424,0.00015576,96304.0,96296.0,0.3608]
[1739359533122,0.00015576,96304.0,96296.0,0.3618]
[1739359534025,0.00015576,96304.0,96296.0,0.3608]
[1739359534328,0.00015576,96304.0,96296.0,0.3618]
[1739359534723,0.00015576,96304.0,96296.0,0.3688]
[1739359535128,0.00015576,96304.0,96300.0,0.3608]
[1739359536430,0.00315576,96304.0,96300.0,0.3608]
[1739359537563,0.0816588,96320.0,96300.0,0.3608]
[1739359537735,0.0816588,96320.0,96317.0,0.3608]
[1739359537925,0.0816588,96327.0,96317.0,0.3608]
[1739359539533,0.0846588,96327.0,96317.0,0.3618]
[1739359539926,0.0876588,96327.0,96317.0,0.3618]
[1739359544135,0.0876588,96327.0,96317.0,0.001]
[1739359544436,0.0876588,96327.0,96317.0,0.3618]
[1739359545342,0.1693176,96327.0,96317.0,0.3618]
[1739359547240,0.20247472,96327.0,96317.0,0.3618]
[1739359548138,0.12081592,96327.0,96317.0,0.3618]
[1739359548339,0.20247472,96327.0,96317.0,0.3618]
[1739359548534,0.3608,96324.0,96317.0,0.001]
[1739359548836,0.20247472,96327.0,96317.0,0.001]
[1739359549039,0.0306,96323.0,96317.0,0.001]
[1739359549236,0.0302,96322.0,96317.0,0.001]
[1739359550238,0.0302,96322.0,96312.0,0.00015576]
[1739359550439,0.1965176,96322.0,96312.0,0.00015576]
[1739359550939,0.12795953,96322.0,96312.0,0.00015576]
[1739359552039,0.3608,96316.0,96312.0,0.00015576]
[1739359553346,0.3618,96316.0,96312.0,0.00015576]
[1739359556538,0.3608,96316.0,96312.0,0.00015576]
[1739359556855,0.3628,96316.0,96312.0,0.00015576]
[1739359558739,0.37470159,96316.0,96312.0,0.00015576]
[1739359559045,0.03315712,96315.0,96312.0,0.00015576]
[1739359561845,0.03515712,96315.0,96312.0,0.00015576]
[1739359564852,0.03315712,96315.0,96312.0,0.00015576]
[1739359565150,0.03515712,96315.0,96312.0,0.00015576]
[1739359565553,0.03415712,96315.0,96312.0,0.00015576]
[1739359566058,0.03315712,96315.0,96312.0,0.00015576]
[1739359566246,0.03415712,96315.0,96312.0,0.00015576]
[1739359566653,0.03315712,96315.0,96312.0,0.00015576]
[1739359567854,0.03515712,96315.0,96312.0,0.00015576]
[1739359568151,0.03315712,96315.0,96312.0,0.00015576]
[1739359568355,0.03515712,96315.0,96312.0,0.00015576]
[1739359568855,0.03515712,96315.0,96301.0,0.0619]
[1739359569055,0.3608,96304.0,96301.0,0.0619]
[1739359570949,0.39395712,96304.0,96301.0,0.0619]
[1739359572248,0.39495712,96304.0,96301.0,0.0619]
[1739359573949,0.40706814,96304.0,96301.0,0.0619]
[1739359582770,0.37391102,96304.0,96301.0,0.0619]
[1739359582970,0.37391102,96304.0,96302.0,0.0304]
[1739359584664,0.37391102,96304.0,96302.0,0.0324]
[1739359584968,0.37291102,96304.0,96302.0,0.0324]
[1739359585358,0.01211102,96304.0,96302.0,0.0304]
[1739359585665,0.1496588,96311.0,96302.0,0.0334]
[1739359586067,0.0816588,96311.0,96302.0,0.0334]
[1739359587267,0.0934643,96311.0,96302.0,0.0334]
[1739359587466,0.3608,96307.0,96302.0,0.0334]
[1739359593168,0.3608,96307.0,96302.0,0.003]
[1739359593868,0.3608,96307.0,96301.0,0.04986314]
[1739359594365,0.3608,96307.0,96293.0,0.00015576]
[1739359594563,0.0816588,96303.0,96302.0,0.001]
[1739359594758,0.03315712,96306.0,96302.0,0.001]
[1739359595365,0.03315712,96306.0,96293.0,0.00015576]
[1739359595566,0.1633176,96303.0,96293.0,0.00015576]
[1739359595772,0.0816588,96303.0,96302.0,0.001]
[1739359596070,0.03315712,96306.0,96302.0,0.001]
[1739359596271,0.03315712,96306.0,96293.0,0.00015576]
[1739359596772,0.3608,96301.0,96293.0,0.00015576]
[1739359597373,0.3608,96301.0,96293.0,0.00215576]
[1739359597763,0.3608,96301.0,96293.0,0.00515576]
[1739359598469,0.3608,96301.0,96293.0,0.00315576]
[1739359598975,0.3608,96301.0,96293.0,0.00215576]
[1739359600476,0.37286883,96301.0,96293.0,0.00215576]
[1739359602976,0.37286883,96301.0,96293.0,0.00115576]
[1739359603175,0.37286883,96301.0,96293.0,0.00215576]
[1739359608478,0.3608,96297.0,96293.0,0.00215576]
[1739359618982,0.01206883,96301.0,96293.0,0.00215576]
[1739359619178,0.3608,96300.0,96293.0,0.00215576]
[1739359619785,0.1633176,96303.0,96293.0,0.00215576]
[1739359619976,0.3608,96297.0,96293.0,0.00115576]
[1739359620178,0.3608,96297.0,96293.0,0.00215576]
[1739359620785,0.09321959,96303.0,96293.0,0.00215576]
[1739359620986,0.3608,96300.0,96293.0,0.00215576]
[1739359622378,0.3608,96300.0,96293.0,0.00115576]
[1739359622578,0.3608,96300.0,96293.0,0.00215576]
[1739359625286,0.09321959,96303.0,96293.0,0.00215576]
[1739359628189,0.09321959,96303.0,96293.0,0.00115576]
[1739359628379,0.09321959,96303.0,96293.0,0.00215576]
[1739359631591,0.09321959,96303.0,96293.0,0.00115576]
[1739359631791,0.01156079,96303.0,96293.0,0.00115576]
[1739359631998,0.36185473,96304.0,96298.0,0.3608]
[1739359631999,0.00105473,96304.0,96298.0,0.3608]
[1739359632294,0.00105473,96304.0,96299.0,0.0955]
[1739359632494,0.01292502,96304.0,96299.0,0.0955]
[1739359632701,0.00105473,96304.0,96299.0,0.0955]
[1739359633082,0.00405473,96304.0,96299.0,0.0955]
[1739359633287,0.00505473,96304.0,96299.0,0.0955]
[1739359633588,0.01672652,96304.0,96299.0,0.0955]
[1739359633787,0.00505473,96304.0,96299.0,0.0955]
[1739359646109,0.00505473,96304.0,96303.0,0.3608]
[1739359647603,0.00805473,96304.0,96303.0,0.3608]
[1739359647996,0.00705473,96304.0,96303.0,0.3608]
[1739359648210,0.00905473,96304.0,96303.0,0.3608]
[1739359649002,0.00605473,96304.0,96303.0,0.3608]
[1739359650112,0.00905473,96304.0,96303.0,0.3608]
[1739359650810,0.003,96304.0,96303.0,0.3608]
[1739359651007,0.009,96304.0,96303.0,0.3608]
[1739359652125,0.006,96304.0,96303.0,0.3608]
[1739359652324,0.008,96304.0,96303.0,0.3608]
[1739359652725,0.006,96304.0,96303.0,0.3608]
[1739359652924,0.008,96304.0,96303.0,0.3608]
[1739359654126,0.002,96304.0,96303.0,0.3608]
[1739359654328,0.008,96304.0,96303.0,0.3608]
[1739359657026,0.007,96304.0,96303.0,0.3608]
[1739359669734,0.01167728,96312.0,96303.0,0.3608]
[1739359670034,0.01167728,96312.0,96311.0,0.3608]
[1739359670335,0.01167728,96312.0,96311.0,0.42876]
[1739359670635,0.00015576,96312.0,96311.0,0.42876]
[1739359671234,0.0645,96335.0,96311.0,0.44026364]
[1739359672027,0.0645,96335.0,96314.0,0.3608]
[1739359672232,0.0645,96335.0,96315.0,0.0934]
[1739359672435,0.01289636,96317.0,96315.0,0.0934]
[1739359672634,0.00155795,96317.0,96315.0,0.0934]
[1739359672836,0.00015566,96325.0,96315.0,0.0934]
[1739359673024,0.00015566,96325.0,96324.0,0.3608]